fUSD/lending_fUSD_20250905
["ID","MTS","AMOUNT","RATE_DAILY","PERIOD"]
[383728934,1757103039670,-150.0,0.0002064,2]
[383728936,1757103039680,-500.0,0.0002064,2]
[383728938,1757103039689,-500.0,0.0002064,2]
[383728940,1757103039699,-150.0,0.0002064,2]
[383728942,1757103039708,-250.0,0.0002064,2]
[383728944,1757103039717,-151.0,0.00020641,2]
[383728946,1757103039727,-151.0,0.00020641,2]
[383728948,1757103039736,-231.078794,0.00020642,2]
[383728950,1757103039745,-231.078794,0.00020642,2]
[383728953,1757103039755,-231.078794,0.00020642,2]
[383728955,1757103039764,-231.078794,0.00020642,2]
[383728957,1757103039775,-193.91463983,0.00020642,2]
[383728959,1757103039784,-150.0,0.00020642,2]
[383728961,1757103039793,-150.0,0.00020642,2]
[383728964,1757103039802,-500.0,0.00020642,2]
[383728967,1757103039812,-150.0,0.00020642,2]
[383728969,1757103039821,-150.0,0.00020642,2]
[383728971,1757103039831,-150.0,0.00020642,2]
[383728973,1757103039840,-150.0,0.00020642,2]
[383728975,1757103039850,-287.36985285,0.00020643,2]
[383728977,1757103039861,-151.0,0.00020646,2]
[383728979,1757103039875,-150.0,0.00020646,2]
[383728981,1757103039884,-150.0,0.00020646,2]
[383728983,1757103039894,-500.0,0.00020646,2]
[383728985,1757103039904,-150.0,0.00020648,2]
[383728987,1757103039914,-150.0,0.00020648,2]
[383728989,1757103039923,-150.0,0.00020648,2]
[383728991,1757103039932,-150.0,0.00020648,2]
[383728993,1757103039942,-150.0,0.00020648,2]
[383728995,1757103039951,-150.0,0.00020648,2]
[383728997,1757103039960,-150.0,0.00020648,2]
[383729000,1757103039970,-150.0,0.00020648,2]
[383729003,1757103039979,-150.0,0.00020648,2]
[383729005,1757103039988,-150.0,0.00020648,2]
[383729007,1757103039998,-150.0,0.00020648,2]
[383729009,1757103040007,-150.0,0.00020648,2]
[383729011,1757103040016,-150.0,0.00020648,2]
[383729013,1757103040026,-150.0,0.00020648,2]
[383729015,1757103040035,-150.0,0.00020648,2]
[383729017,1757103040045,-500.0,0.00020673,2]
[383729019,1757103040054,-500.0,0.00020673,2]
[383729021,1757103040063,-500.0,0.00020673,2]
[383729023,1757103040073,-500.0,0.00020673,2]
[383729025,1757103040084,-500.0,0.00020673,2]
[383729027,1757103040093,-500.0,0.00020673,2]
[383729029,1757103040103,-502.50947653,0.00020673,2]
[383729031,1757103040113,-544.67774679,0.00020673,2]
[383729033,1757103040122,-500.0,0.00020673,2]
[383729035,1757103040132,-500.0,0.00020673,2]
[383729037,1757103040142,-500.0,0.00020673,2]
[383729039,1757103040151,-500.0,0.00020673,2]
[383729041,1757103040161,-506.73273533,0.000207,2]
[383729043,1757103040170,-150.0,0.00020914,2]
[383729045,1757103040180,-500.0,0.00020914,2]
[383729047,1757103040189,-150.0,0.00020914,2]
[383729049,1757103040199,-150.0,0.00020914,2]
[383729051,1757103040209,-500.0,0.00020914,2]
[383729053,1757103040218,-500.0,0.00020914,2]
[383729055,1757103040227,-250.0,0.00020914,2]
[383729057,1757103040237,-150.0,0.00020914,2]
[383729059,1757103040247,-500.0,0.00020914,2]
[383729061,1757103040256,-500.0,0.00020914,2]
[383729063,1757103040266,-500.0,0.00020914,2]
[383729065,1757103040276,-150.0,0.00020914,2]
[383729067,1757103040286,-150.0,0.00020916,2]
[383729069,1757103040295,-150.0,0.00020916,2]
[383729071,1757103040304,-500.0,0.00020916,2]
[383729073,1757103040313,-150.0,0.00020916,2]
[383729075,1757103040322,-150.0,0.00020916,2]
[383729077,1757103040331,-150.0,0.00020916,2]
[383729079,1757103040340,-150.0,0.00020916,2]
[383729081,1757103040349,-150.0,0.0002092,2]
[383729083,1757103040358,-150.0,0.0002092,2]
[383729085,1757103040367,-500.0,0.0002092,2]
[383729087,1757103040377,-1000.0,0.00020921,2]
[383729089,1757103040386,-1000.0,0.00020921,2]
[383729091,1757103040396,-500.0,0.00020921,2]
[383729093,1757103040405,-150.0,0.00020922,2]
[383729095,1757103040415,-150.0,0.00020922,2]
[383729097,1757103040424,-150.0,0.00020922,2]
[383729099,1757103040434,-150.0,0.00020922,2]
[383729101,1757103040443,-150.0,0.00020922,2]
[383729103,1757103040454,-150.0,0.00020922,2]
[383729105,1757103040463,-150.0,0.00020922,2]
[383729107,1757103040473,-150.0,0.00020922,2]
[383729109,1757103040485,-8461.90617308,0.00021094,2]
[383729111,1757103040494,-500.0,0.00021188,2]
[383729113,1757103040503,-150.0,0.00021188,2]
[383729115,1757103040513,-150.0,0.00021188,2]
[383729117,1757103040523,-500.0,0.00021188,2]
[383729119,1757103040532,-500.0,0.00021188,2]
[383729122,1757103040542,-150.0,0.00021188,2]
[383729123,1757103040551,-500.0,0.00021188,2]
[383729127,1757103040561,-500.0,0.00021188,2]
[383729128,1757103040571,-195.36893609,0.00021188,2]
[383729131,1757103040582,-150.0,0.0002119,2]
[383729132,1757103040592,-150.0,0.0002119,2]
[383729135,1757103040603,-150.0,0.0002119,2]
[383729137,1757103040612,-200.0,0.0002119,2]
[383729138,1757103040621,-150.0,0.0002119,2]
[383729140,1757103040630,-252.35997008,0.0002119,2]
[383729142,1757103040638,-300.0,0.00021194,2]
[383729144,1757103040647,-250.0,0.00021196,2]
[383729146,1757103040656,-150.0,0.00021196,2]
[383729148,1757103040666,-150.0,0.00021196,2]
[383729150,1757103040675,-250.0,0.00021196,2]
[383729152,1757103040684,-150.0,0.00021196,2]
[383729154,1757103040694,-250.0,0.00021196,2]
[383729156,1757103040703,-500.0,0.00021221,2]
[383729158,1757103040712,-1000.0,0.00021221,2]
[383729160,1757103040721,-701.33203014,0.00021221,2]
[383729162,1757103040731,-1000.0,0.00021221,2]
[383729164,1757103040740,-341.23116771,0.00021221,2]
[383729166,1757103040751,-310.96700446,0.00021221,2]
[383729168,1757103040760,-500.0,0.00021221,2]
[383729170,1757103040770,-500.0,0.00021221,2]
[383729172,1757103040779,-822.41778133,0.00021221,2]
[383729174,1757103040788,-978.68,0.00021249,2]
[383729176,1757103040797,-1988.69,0.00021258,2]
[383729178,1757103040807,-151.863943,0.00021258,2]
[383729180,1757103040817,-420.0,0.00021377,2]
[383729182,1757103040827,-201.47,0.00021396,2]
[383729184,1757103040836,-215.0,0.00021427,2]
[383729186,1757103040846,-500.0,0.00021462,2]
[383729188,1757103040856,-150.0,0.00021462,2]
[383729190,1757103040868,-150.0,0.00021462,2]
[383729192,1757103040879,-500.0,0.00021462,2]
[383729194,1757103040888,-592.0,0.00021462,2]
[383729196,1757103040897,-264.16359539,0.00021462,2]
[383729198,1757103040907,-500.0,0.00021462,2]
[383729200,1757103040918,-153.34,0.00021462,2]
[383729202,1757103040927,-150.0,0.00021464,2]
[383729204,1757103040936,-250.0,0.00021464,2]
[383729206,1757103040948,-200.0,0.00021464,2]
[383729208,1757103040957,-364.33,0.00021466,2]
[383729211,1757103040967,-1034.09000812,0.00021468,2]
[383729212,1757103040976,-1500.0,0.00021468,2]
[383729215,1757103040985,-250.0,0.0002147,2]
[383729216,1757103040994,-300.0,0.00021479,2]
[383729218,1757103041004,-250.0,0.00021479,2]
[383729221,1757103041014,-1680.0,0.0002148,2]
[383729223,1757103041023,-610.0,0.00021497,2]
[383729225,1757103041033,-500.0,0.000215,2]
[383729227,1757103041042,-160.0,0.00021576,7]
[383729229,1757103041051,-195.0,0.00021588,2]
[383729231,1757103041061,-300.0,0.00021588,2]
[383729233,1757103041070,-350.0,0.00021736,2]
[383729235,1757103041079,-150.0,0.00021736,2]
[383729237,1757103041089,-150.0,0.00021736,2]
[383729239,1757103041098,-500.0,0.00021736,2]
[383729241,1757103041107,-500.0,0.00021736,2]
[383729243,1757103041117,-150.0,0.00021738,2]
[383729245,1757103041126,-1500.0,0.00021768,2]
[383729247,1757103041135,-1362.55,0.00021788,2]
[383729249,1757103041145,-151.0,0.00021902,2]
[383729251,1757103041155,-151.0,0.00021902,2]
[383729253,1757103041164,-151.0,0.00021902,2]
[383729255,1757103041173,-198.128419,0.00021902,2]
[383729257,1757103041183,-155.657595,0.00021902,2]
[383729259,1757103041193,-912.93,0.00021902,2]
[383729261,1757103041202,-151.0,0.00021918,2]
[383729263,1757103041212,-150.0,0.00021962,2]
[383729265,1757103041221,-250.0,0.00022005,2]
[383729266,1757103041230,-250.0,0.0002201,2]
[383729267,1757103041239,-250.0,0.0002201,2]
[383729268,1757103041248,-500.0,0.0002201,2]
[383729269,1757103041257,-150.0,0.0002201,2]
[383729270,1757103041267,-645.0,0.0002201,2]
[383729271,1757103041276,-150.0,0.00022012,2]
[383729272,1757103041285,-151.0,0.00022016,7]
[383729273,1757103041294,-151.0,0.00022016,7]
[383729274,1757103041303,-151.0,0.00022016,7]
[383729275,1757103041312,-151.0,0.00022016,7]
[383729276,1757103041321,-342.545022,0.00022016,7]
[383729278,1757103041330,-229.25174,0.00022016,7]
[383729280,1757103041339,-342.545022,0.00022016,7]
[383729281,1757103041351,-342.545022,0.00022016,7]
[383729284,1757103041362,-342.545022,0.00022016,7]
[383729286,1757103041371,-503.73444664,0.00022016,2]
[383729287,1757103041380,-423.74908537,0.00022062,2]
[383729289,1757103041389,-10786.2159728,0.00022264,2]
[383729291,1757103041398,-7951.83833312,0.00022264,2]
[383729293,1757103041408,-151.0,0.00022264,2]
[383729295,1757103041417,-188.855972,0.00022264,7]
[383729297,1757103041427,-188.855972,0.00022264,7]
[383729299,1757103041436,-188.855972,0.00022264,7]
[383729301,1757103041446,-188.855972,0.00022264,7]
[383729303,1757103041455,-151.0,0.00022264,7]
[383729305,1757103041464,-500.0,0.00022284,2]
[383729307,1757103041474,-2000.0,0.00022316,2]
[383729309,1757103041483,-920.18,0.00022356,2]
[383729311,1757103041493,-150.0,0.00022389,2]
[383729313,1757103041502,-150.0,0.00022389,2]
[383729315,1757103041511,-150.0,0.00022469,2]
[383729317,1757103041520,-505.0,0.00022558,2]
[383729319,1757103041530,-155.0,0.00022703,2]
[383729321,1757103041539,-341.97493428,0.0002283,2]
[383729323,1757103041548,-1732.49085586,0.00022864,2]
[383729325,1757103041558,-164.23,0.00023,2]
[383729327,1757103041567,-500.0,0.00023075,2]
[383729330,1757103041577,-155.59,0.00023182,2]
[383729331,1757103041586,-587.0,0.00023286,2]
[383729333,1757103041595,-200.0,0.0002338,2]
[383729336,1757103041605,-500.0,0.00023476,2]
[383729337,1757103041614,-720.0,0.00023512,2]
[383729339,1757103041623,-151.0,0.00023545,7]
[383729341,1757103041633,-195.24407247,0.00023545,7]
[383729343,1757103041642,-428.88427858,0.00023545,2]
[383729345,1757103041651,-510.38931716,0.00023623,2]
[383729347,1757103041660,-151.0,0.00023728,7]
[383729349,1757103041669,-231.078794,0.00023728,7]
[383729351,1757103041678,-231.078794,0.00023728,7]
[383729353,1757103041687,-231.078794,0.00023728,7]
[383729355,1757103041696,-231.078794,0.00023728,7]
[383729357,1757103041706,-151.0,0.00023728,7]
[383729359,1757103041715,-151.0,0.00023728,7]
[383729361,1757103041724,-151.0,0.00023728,7]
[383729363,1757103041734,-287.105726,0.00023728,7]
[383729365,1757103041743,-10786.2159728,0.00023989,2]
[383729367,1757103041752,-7951.83833312,0.00023989,2]
[383729369,1757103041761,-163.23682657,0.00024558,2]
[383729371,1757103041771,-423.74908537,0.00024598,2]
[383729373,1757103041780,-154.01530806,0.00024648,2]
[383729375,1757103041789,-292.306975,0.00024658,7]
[383729377,1757103041799,-151.0,0.00024658,7]
[383729379,1757103041809,-151.0,0.00024658,7]
[383729381,1757103041818,-151.0,0.00024658,7]
[383729383,1757103041828,-151.0,0.00024658,7]
[383729385,1757103041837,-151.0,0.00024658,7]
[383729387,1757103041846,-151.0,0.00024658,7]
[383729389,1757103041856,-151.0,0.00024658,7]
[383729391,1757103041866,-151.0,0.00024658,7]
[383729393,1757103041880,-176.2812,0.00024658,7]
[383729395,1757103041890,-151.0,0.00024658,7]
[383729397,1757103041899,-176.2812,0.00024658,7]
[383729399,1757103041908,-151.0,0.00024658,7]
[383729401,1757103041918,-176.2812,0.00024658,7]
[383729403,1757103041927,-151.0,0.00024658,7]
[383729405,1757103041937,-273.329239,0.00024658,7]
[383729407,1757103041946,-176.2812,0.00024658,7]
[383729408,1757103041956,-151.0,0.00024658,7]
[383729434,1757103042191,-151.0,0.00024658,7]
[383729436,1757103042204,-151.0,0.00024658,7]
[383729438,1757103042213,-151.0,0.00024658,7]
[383729440,1757103042223,-151.0,0.00024658,7]
[383729443,1757103042233,-151.0,0.00024658,7]
[383729445,1757103042243,-151.0,0.00024658,7]
[383729447,1757103042252,-151.0,0.00024658,7]
[383729448,1757103042262,-249.396648,0.00024658,7]
[383729450,1757103042271,-245.157178,0.00024658,7]
[383729453,1757103042281,-151.0,0.00024658,7]
[383729454,1757103042291,-232.256383,0.00024658,7]
[383729457,1757103042301,-192.05837,0.00024658,7]
[383729458,1757103042310,-192.05837,0.00024658,7]
[383729461,1757103042319,-192.05837,0.00024658,7]
[383729463,1757103042329,-192.05837,0.00024658,7]
[383729465,1757103042339,-184.005378,0.00024658,7]
[383729467,1757103042348,-154.07688,0.00024658,7]
[383729469,1757103042358,-151.879782,0.00024658,7]
[383729471,1757103042368,-151.0,0.00024658,7]
[383729473,1757103042377,-151.0,0.00024658,7]
[383729475,1757103042387,-151.0,0.00024658,7]
[383729477,1757103042397,-151.0,0.00024658,7]
[383729479,1757103042406,-151.0,0.00024658,7]
[383729481,1757103042416,-151.0,0.00024658,7]
[383729483,1757103042426,-151.0,0.00024658,7]
[383729485,1757103042435,-151.0,0.00024658,7]
[383729487,1757103042444,-151.0,0.00024658,7]
[383729489,1757103042454,-151.0,0.00024658,7]
[383729491,1757103042464,-151.0,0.00024658,7]
[383729493,1757103042474,-151.0,0.00024658,7]
[383729495,1757103042483,-151.0,0.00024658,7]
[383729497,1757103042492,-151.0,0.00024658,7]
[383729499,1757103042503,-151.0,0.00024658,7]
[383729501,1757103042512,-151.0,0.00024658,7]
[383729503,1757103042521,-151.0,0.00024658,7]
[383729505,1757103042531,-151.0,0.00024658,7]
[383729507,1757103042540,-151.0,0.00024658,7]
[383729509,1757103042550,-156.301216,0.00024658,7]
[383729511,1757103042559,-151.0,0.00024658,7]
[383729513,1757103042568,-152.006518,0.00024658,7]
[383729515,1757103042578,-151.0,0.00024658,7]
[383729517,1757103042587,-151.0,0.00024658,7]
[383729519,1757103042597,-151.0,0.00024658,7]
[383729521,1757103042606,-151.0,0.00024658,7]
[383729523,1757103042616,-152.645025,0.00024658,7]
[383729525,1757103042627,-338.746082,0.00024658,7]
[383729527,1757103042636,-338.746082,0.00024658,7]
[383729529,1757103042646,-338.746082,0.00024658,7]
[383729531,1757103042656,-338.746082,0.00024658,7]
[383729533,1757103042666,-338.746082,0.00024658,7]
[383729535,1757103042675,-338.746082,0.00024658,7]
[383729537,1757103042684,-338.746082,0.00024658,7]
[383729539,1757103042694,-338.746082,0.00024658,7]
[383729541,1757103042704,-151.0,0.00024658,7]
[383729543,1757103042714,-151.0,0.00024658,7]
[383729545,1757103042723,-331.901408,0.00024658,7]
[383729547,1757103042732,-331.901408,0.00024658,7]
[383729549,1757103042743,-331.901408,0.00024658,7]
[383729551,1757103042752,-331.901408,0.00024658,7]
[383729554,1757103042762,-151.0,0.00024658,7]
[383729556,1757103042772,-153.177548,0.00024658,7]
[383729558,1757103042782,-151.0,0.00024658,7]
[383729560,1757103042792,-151.0,0.00024658,7]
[383729562,1757103042801,-194.583582,0.00024658,7]
[383729565,1757103042811,-194.583582,0.00024658,7]
[383729568,1757103042820,-151.0,0.00024658,7]
[383729570,1757103042830,-151.0,0.00024658,7]
[383729572,1757103042839,-194.583582,0.00024658,7]
[383729574,1757103042848,-194.583582,0.00024658,7]
[383729576,1757103042859,-151.0,0.00024658,7]
[383729578,1757103042872,-151.0,0.00024658,7]
[383729580,1757103042881,-151.0,0.00024658,7]
[383729582,1757103042891,-194.583582,0.00024658,7]
[383729584,1757103042900,-151.0,0.00024658,7]
[383729587,1757103042911,-194.583582,0.00024658,7]
[383729589,1757103042921,-151.0,0.00024658,7]
[383729591,1757103042931,-151.0,0.00024658,7]
[383729594,1757103042941,-194.583582,0.00024658,7]
[383729597,1757103042951,-194.583582,0.00024658,7]
[383729599,1757103042961,-151.0,0.00024658,7]
[383729602,1757103042971,-151.0,0.00024658,7]
[383729604,1757103042980,-151.0,0.00024658,7]
[383729607,1757103042989,-151.0,0.00024658,7]
[383729610,1757103042998,-155.465717,0.00024658,7]
[383729612,1757103043008,-151.048415,0.00024658,7]
[383729614,1757103043019,-184.271737,0.00024658,7]
[383729616,1757103043029,-151.0,0.00024658,7]
[383729618,1757103043038,-151.0,0.00024658,7]
[383729620,1757103043047,-151.0,0.00024658,7]
[383729622,1757103043056,-151.0,0.00024658,7]
[383729625,1757103043065,-151.0,0.00024658,7]
[383729628,1757103043074,-204.095943,0.00024658,7]
[383729630,1757103043084,-151.0,0.00024658,7]
[383729633,1757103043093,-151.0,0.00024658,7]
[383729636,1757103043102,-427.844353,0.00024658,7]
[383729638,1757103043111,-427.844353,0.00024658,7]
[383729640,1757103043121,-151.0,0.00024658,7]
[383729642,1757103043130,-151.0,0.00024658,7]
[383729644,1757103043140,-427.844353,0.00024658,7]
[383729646,1757103043149,-427.844353,0.00024658,7]
[383729648,1757103043158,-427.844353,0.00024658,7]
[383729650,1757103043167,-427.844353,0.00024658,7]
[383729652,1757103043176,-427.844353,0.00024658,7]
[383729654,1757103043187,-427.844353,0.00024658,7]
[383729656,1757103043197,-151.824405,0.00024658,7]
[383729658,1757103043206,-262.213734,0.00024658,7]
[383729660,1757103043215,-262.213734,0.00024658,7]
[383729662,1757103043224,-262.213734,0.00024658,7]
[383729664,1757103043234,-151.0,0.00024658,7]
[383729666,1757103043244,-262.213734,0.00024658,7]
[383729668,1757103043254,-151.0,0.00024658,7]
[383729670,1757103043264,-262.213734,0.00024658,7]
[383729672,1757103043274,-242.977865,0.00024658,7]
[383729675,1757103043284,-262.213734,0.00024658,7]
[383729677,1757103043293,-262.213734,0.00024658,7]
[383729679,1757103043303,-262.213734,0.00024658,7]
[383729681,1757103043312,-151.0,0.00024658,7]
[383729683,1757103043322,-746.53414,0.00024658,7]
[383729685,1757103043331,-151.0,0.00024658,7]
[383729687,1757103043341,-746.53414,0.00024658,7]
[383729689,1757103043351,-339.111969,0.00024658,7]
[383729691,1757103043360,-151.0,0.00024658,7]
[383729693,1757103043370,-151.0,0.00024658,7]
[383729695,1757103043379,-339.111969,0.00024658,7]
[383729697,1757103043389,-152.274757,0.00024658,7]
[383729699,1757103043398,-151.0,0.00024658,7]
[383729701,1757103043407,-339.111969,0.00024658,7]
[383729703,1757103043417,-339.111969,0.00024658,7]
[383729705,1757103043427,-746.53414,0.00024658,7]
[383729707,1757103043436,-151.0,0.00024658,7]
[383729709,1757103043446,-746.53414,0.00024658,7]
[383729711,1757103043455,-151.0,0.00024658,7]
[383729713,1757103043465,-151.0,0.00024658,7]
[383729714,1757103043474,-151.0,0.00024658,7]
[383729715,1757103043483,-151.0,0.00024658,7]
[383729716,1757103043492,-151.0,0.00024658,7]
[383729717,1757103043502,-339.111969,0.00024658,7]
[383729718,1757103043511,-746.53414,0.00024658,7]
[383729719,1757103043520,-339.111969,0.00024658,7]
[383729720,1757103043529,-151.0,0.00024658,7]
[383729721,1757103043539,-746.53414,0.00024658,7]
[383729722,1757103043548,-151.0,0.00024658,7]
[383729723,1757103043558,-173.20196,0.00024658,7]
[383729724,1757103043567,-151.0,0.00024658,7]
[383729726,1757103043577,-173.20196,0.00024658,7]
[383729728,1757103043587,-151.0,0.00024658,7]
[383729731,1757103043596,-151.190736,0.00024658,7]
[383729733,1757103043608,-339.111969,0.00024658,7]
[383729735,1757103043618,-746.53414,0.00024658,7]
[383729737,1757103043627,-746.53414,0.00024658,7]
[383729739,1757103043637,-339.111969,0.00024658,7]
[383729741,1757103043647,-173.20196,0.00024658,7]
[383729744,1757103043656,-173.20196,0.00024658,7]
[383729747,1757103043666,-306.853499,0.00024658,7]
[383729750,1757103043675,-306.853499,0.00024658,7]
[383729752,1757103043685,-173.20196,0.00024658,7]
[383729754,1757103043694,-173.20196,0.00024658,7]
[383729756,1757103043705,-306.853499,0.00024658,7]
[383729758,1757103043715,-173.20196,0.00024658,7]
[383729760,1757103043724,-306.853499,0.00024658,7]
[383729762,1757103043734,-173.20196,0.00024658,7]
[383729764,1757103043743,-306.853499,0.00024658,7]
[383729766,1757103043752,-306.853499,0.00024658,7]
[383729768,1757103043761,-201.342457,0.00024658,7]
[383729770,1757103043771,-151.0,0.00024658,7]
[383729772,1757103043780,-201.342457,0.00024658,7]
[383729774,1757103043790,-151.0,0.00024658,7]
[383729776,1757103043799,-306.853499,0.00024658,7]
[383729778,1757103043808,-210.43953,0.00024658,7]
[383729780,1757103043818,-306.853499,0.00024658,7]
[383729782,1757103043827,-324.37379,0.00024658,7]
[383729784,1757103043837,-151.0,0.00024658,7]
[383729786,1757103043847,-324.37379,0.00024658,7]
[383729788,1757103043858,-210.43953,0.00024658,7]
[383729790,1757103043871,-201.342457,0.00024658,7]
[383729792,1757103043881,-151.0,0.00024658,7]
[383729794,1757103043891,-201.342457,0.00024658,7]
[383729796,1757103043900,-151.0,0.00024658,7]
[383729798,1757103043911,-151.0,0.00024658,7]
[383729800,1757103043920,-324.37379,0.00024658,7]
[383729802,1757103043929,-643.52674,0.00024658,7]
[383729804,1757103043938,-151.0,0.00024658,7]
[383729806,1757103043948,-210.43953,0.00024658,7]
[383729808,1757103043959,-324.37379,0.00024658,7]
[383729810,1757103043968,-643.52674,0.00024658,7]
[383729812,1757103043978,-201.342457,0.00024658,7]
[383729814,1757103043987,-151.0,0.00024658,7]
[383729816,1757103043997,-210.43953,0.00024658,7]
[383729818,1757103044007,-201.342457,0.00024658,7]
[383729820,1757103044017,-151.0,0.00024658,7]
[383729822,1757103044026,-151.0,0.00024658,7]
[383729824,1757103044036,-643.52674,0.00024658,7]
[383729826,1757103044045,-324.37379,0.00024658,7]
[383729828,1757103044055,-210.43953,0.00024658,7]
[383729830,1757103044064,-201.342457,0.00024658,7]
[383729832,1757103044074,-643.52674,0.00024658,7]
[383729835,1757103044083,-324.37379,0.00024658,7]
[383729837,1757103044093,-210.43953,0.00024658,7]
[383729838,1757103044102,-201.342457,0.00024658,7]
[383729840,1757103044112,-151.0,0.00024658,7]
[383729842,1757103044121,-151.0,0.00024658,7]
[383729844,1757103044131,-210.43953,0.00024658,7]
[383729847,1757103044141,-643.52674,0.00024658,7]
[383729849,1757103044150,-210.43953,0.00024658,7]
[383729851,1757103044160,-324.37379,0.00024658,7]
[383729853,1757103044170,-643.52674,0.00024658,7]
[383729855,1757103044180,-324.37379,0.00024658,7]
[383729857,1757103044190,-643.52674,0.00024658,7]
[383729859,1757103044199,-643.52674,0.00024658,7]
[383729861,1757103044209,-331.656227,0.00024658,7]
[383729863,1757103044219,-331.656227,0.00024658,7]
[383729865,1757103044229,-151.0,0.00024658,7]
[383729867,1757103044238,-331.656227,0.00024658,7]
[383729869,1757103044247,-151.0,0.00024658,7]
[383729871,1757103044257,-331.656227,0.00024658,7]
[383729873,1757103044267,-331.656227,0.00024658,7]
[383729875,1757103044277,-331.656227,0.00024658,7]
[383729877,1757103044286,-151.0,0.00024658,7]
[383729879,1757103044296,-243.464236,0.00024658,7]
[383729881,1757103044305,-331.656227,0.00024658,7]
[383729883,1757103044315,-331.656227,0.00024658,7]
[383729885,1757103044325,-151.0,0.00024658,7]
[383729888,1757103044335,-151.0,0.00024658,7]
[383729889,1757103044344,-151.0,0.00024658,7]
[383729892,1757103044354,-175.13595,0.00024658,7]
[383729894,1757103044364,-151.0,0.00024658,7]
[383729895,1757103044373,-151.0,0.00024658,7]
[383729898,1757103044383,-811.15276,0.00024658,7]
[383729900,1757103044393,-151.0,0.00024658,7]
[383729902,1757103044402,-811.15276,0.00024658,7]
[383729904,1757103044411,-151.0,0.00024658,7]
[383729906,1757103044421,-151.0,0.00024658,7]
[383729908,1757103044431,-811.15276,0.00024658,7]
[383729910,1757103044440,-196.43964,0.00024658,7]
[383729912,1757103044450,-811.15276,0.00024658,7]
[383729914,1757103044460,-811.15276,0.00024658,7]
[383729916,1757103044471,-811.15276,0.00024658,7]
[383729918,1757103044481,-811.15276,0.00024658,7]
[383729920,1757103044490,-223.588264,0.00024658,7]
[383729922,1757103044500,-811.15276,0.00024658,7]
[383729931,1757103044592,-223.588264,0.00024658,7]
[383729933,1757103044601,-151.0,0.00024658,7]
[383729935,1757103044611,-223.588264,0.00024658,7]
[383729936,1757103044619,-152.146565,0.00024658,7]
[383729938,1757103044627,-223.588264,0.00024658,7]
[383729940,1757103044636,-223.588264,0.00024658,7]
[383729941,1757103044645,-223.588264,0.00024658,7]
[383729943,1757103044655,-223.588264,0.00024658,7]
[383729945,1757103044664,-223.588264,0.00024658,7]
[383729946,1757103044673,-151.0,0.00024658,7]
[383729948,1757103044682,-151.0,0.00024658,7]
[383729950,1757103044691,-151.0,0.00024658,7]
[383729952,1757103044700,-580.424287,0.00024658,7]
[383729953,1757103044709,-151.0,0.00024658,7]
[383729955,1757103044718,-580.424287,0.00024658,7]
[383729957,1757103044726,-151.0,0.00024658,7]
[383729958,1757103044735,-151.0,0.00024658,7]
[383729960,1757103044744,-151.0,0.00024658,7]
[383729962,1757103044753,-151.0,0.00024658,7]